Cogmind - Beta 17.1 @@@ ROGUE MODE // 2026.09.18 @ 14:32:28 Player: teag2 Result: Destroyed by JV-DFL(R) with Subdweller Machine Gun Performance ------------- Evolutions (0) 0 Regions Visited (2) 400 Robots Destroyed (26) 130 Value Destroyed (696) 696 Prototype IDs (0) 0 Alien Tech Used (0) 0 Bonus (0) 0 TOTAL SCORE: 1226 Bonus ------- None Cogmind --------- Core Integrity 0/250 Matter 296/300 Energy 229/250 System Corruption 1% Temperature Cool (0) Movement Rolling (125) Ox3 Location -10/Subcaves Parts ------- > --- POWER (1) -------- Ion Engine > --- PROPULSION (2) --- Aluminum Leg Wheel > --- UTILITY (2) ------ Large Storage Unit > --- WEAPON (2) ------- Subdweller Beam Cannon Subdweller Machine Gun > --- INVENTORY (15) --- Subdweller Power Source Aluminum Leg Compact Wheel Disposable Heat Sink Huge Storage Unit High-capacity Matter Pod (200) Scrap Shield EM Pulse Gun Medium Laser Subdweller Laser Subdweller Laser Subdweller Machine Gun Subdweller Shrapnel Launcher Piercing Trap Peak State ------------ > --- POWER ------------ Ion Engine > --- PROPULSION ------- Aluminum Leg Wheel > --- UTILITY ---------- Large Storage Unit Light Armor Plating > --- WEAPON ----------- Subdweller Beam Cannon Subdweller Machine Gun > --- INVENTORY -------- Aluminum Leg Compact Wheel Disposable Heat Sink Huge Storage Unit High-capacity Matter Pod Scrap Shield EM Pulse Gun Medium Laser Subdweller Laser Subdweller Laser Subdweller Machine Gun Subdweller Shrapnel Launcher Piercing Trap [Rating: 11] Favorites ----------- Power Ion Engine Engine Ion Engine Propulsion Light Treads Treads Light Treads Leg Aluminum Leg Wheel Wheel Utility Light Armor Plating Storage Large Storage Unit Protection Light Armor Plating Weapon Assault Rifle Energy Gun Subdweller Laser Energy Cannon Subdweller Beam Cannon Ballistic Gun Assault Rifle Build | -11 -10 -10 ------- Run | Yrd Mat Sub Slots Evolved . | . . . Power . | . . . Propulsion . | . . . Utility . | . . . Weapon . | . . . Parts Attached 17 | 3 4 10 Power 1 | . . 1 Engine 1 | . . 1 Core . | . . . Reactor . | . . . Propulsion 4 | 2 . 2 Treads 2 | 2 . . Leg 1 | . . 1 Wheel 1 | . . 1 Hover . | . . . Flight . | . . . Utility 4 | . 3 1 Device . | . . . Storage 2 | . 2 . Processor . | . . . Hackware . | . . . Protection 2 | . 1 1 Artifact . | . . . Weapon 8 | 1 1 6 Energy Gun 2 | 1 . 1 Energy Cannon 2 | . . 2 Ballistic Gun 4 | . 1 3 Ballistic Cannon . | . . . Launcher . | . . . Special Weapon . | . . . Impact Weapon . | . . . Slashing Weapon . | . . . Piercing Weapon . | . . . Special Melee Weapon . | . . . Unidentified Prototypes . | . . . Parts Lost 7 | . . 7 Power 1 | . . 1 Propulsion 2 | . . 2 Utility 2 | . . 2 Weapon 2 | . . 2 Highest Loss Streak 4 | . . 4 To Critical Strikes 1 | . . 1 Average Backups 9 | 6 8 9 Power . | 1 1 . Propulsion 3 | 4 4 3 Utility 2 | . 1 2 Weapon 2 | 1 1 3 Tool/Special . | . . . Unused Backups 12 | . 1 11 Power . | . . . Propulsion 1 | . . 1 Utility 6 | . 1 5 Weapon 5 | . . 5 Tool/Special . | . . . Average Slot Usage (%) 97 | . 90 99 Engine 14 | . 14 14 Treads 17 | . 28 14 Leg 2 | . . 2 Wheel 7 | . . 10 Storage 14 | . 14 14 Protection 11 | . 5 14 Energy Gun 9 | . 14 8 Energy Cannon 4 | . . 5 Ballistic Gun 14 | . 13 14 Peak Build Rating 11 | 6 8 11 Average Rating 8 | 6 6 9 On Entrance 6 | 6 6 8 Avg Prop Armor Cover (%) 8 | . . 8 Naked Turns . | . . . Heaviest Build 40 | 12 30 40 Greatest Support 40 | 40 40 40 Greatest Overweight (x) 3 | . . 3 Average Overweight (x) 1 | . . 2 Largest Inventory Capacity 15 | 8 15 15 Average Capacity 13 | 8 10 15 Most Carried 15 | 6 10 15 Average Carried 9 | 6 8 10 Final Capacity 15 | 8 15 15 Final Carried 15 | 6 10 15 Class Distribution -------------------- 100% | Mutant Dominant Class ---------------- Mutant | -10/Materials Mutant | -10/Subcaves Resources | -11 -10 -10 ----------- Run | Yrd Mat Sub Matter Collected 746 | 219 153 374 Remotely . | . . . Salvage Created 768 | . 261 507 Parts 51 | . 16 35 Haulers Intercepted 1 | . 1 . Recyclers Shooed 2 | . 2 . Parts Field Recycled . | . . . Retrieved Matter . | . . . Parts Self-Destructed 15 | . . 15 Prevented . | . . . Parts Restored . | . . . Kills | -11 -10 -10 ------- Run | Yrd Mat Sub Combat Hostiles Destroyed 25 | . 9 16 Guns 19 | . 9 10 Cannons 6 | . . 6 Classes Destroyed 5 | . 3 2 Hauler 1 | . 1 . Swarmer 10 | . 6 4 Grunt 4 | . 3 1 Sentry 1 | . . 1 Subdweller 10 | . . 10 Best Kill Streak 3 | . 3 3 Combat Bots Only 3 | . 3 3 Max Kills in Single Turn 2 | . 2 1 Gunslinging 1 | . 1 . Exploded . | . . . Melee . | . . . Uniques/NPCs Destroyed . | . . . Combat | -11 -10 -10 -------- Run | Yrd Mat Sub Hostile Shots Fired 113 | . 35 78 Missed 26 | . 7 19 Hits 87 | . 28 59 Projectile 87 | . 28 59 Critical Strikes 2 | . . 2 Damage Taken 1269 | . 277 992 Core 251 | . 59 192 Absorbed by Shields . | . . . Regen/Repaired (Parts) 31 | . 31 . Core Remaining (%) 100 | 100 . . Volleys Fired 78 | . 28 50 Largest 2 | . 2 2 Hottest 140 | . 70 140 Shots Fired 146 | . 56 90 Gun 122 | . 56 66 Cannon 24 | . . 24 Launcher . | . . . Special . | . . . Kinetic 77 | . 28 49 Thermal 69 | . 28 41 Explosive . | . . . Electromagnetic . | . . . Robot Hit Streak 20 | . 8 20 Robot Miss Streak 3 | . 3 2 Penetration Max . | . . . Secondary Targets 2 | . 2 . Max Gunslinging Chain 1 | . 1 . Shots Hit Robots 98 | . 37 61 Core Hits 38 | . 16 22 Critical Kills . | . . . Critical Parts Destroyed 1 | . . 1 Critical Strikes 5 | . 4 1 Burn 4 | . 4 . Destroy 1 | . . 1 Melee Attacks . | . . . Impact . | . . . Slashing . | . . . Piercing . | . . . Sneak Attacks . | . . . Combat Hostiles . | . . . Follow-up Attacks . | . . . Damage Inflicted 1736 | . 481 1255 Guns 1216 | . 472 744 Cannons 511 | . . 511 Explosions . | . . . Melee . | . . . Ramming 9 | . 9 . Kinetic 789 | . 236 553 Thermal 938 | . 236 702 Explosive . | . . . Electromagnetic . | . . . Impact . | . . . Slashing . | . . . Piercing . | . . . Highest Corruption 1 | . 1 1 Average Corruption 1 | . 1 1 Corruption Purged . | . . . Corruption Blocked . | . . . Effects 11 | . 1 10 Message Errors 5 | . 1 4 Heat Flow Errors 3 | . . 3 Energy Discharges 2 | . . 2 Data Loss (minor) 1 | . . 1 Overload Shots . | . . . Overflow Damage . | . . . Projectiles . | . . . Explosions . | . . . Melee . | . . . Knockbacks . | . . . Impact . | . . . Kinetic . | . . . Secondary . | . . . Self-Inflicted Damage . | . . . Shots . | . . . Rammed 2 | . 2 . Targets Rammed 2 | . 2 . Kicked . | . . . Crushed . | . . . Highest Temperature 229 | . 198 229 Average Temperature 48 | . 46 51 Received Heat Transfer 285 | . 78 207 Siege Activations . | . . . Martial Activations . | . . . Shielding Activations . | . . . Robots Disrupted . | . . . Combat Hostiles . | . . . Robots Corrupted . | . . . Combat Hostiles . | . . . Parts Fried . | . . . Impact Corruptions . | . . . Robots Melted . | . . . Combat Hostiles . | . . . Parts Melted 4 | . 2 2 Heat Transferred 1964 | . 999 965 Parts Sabotaged . | . . . Parts Stolen . | . . . Parts Stripped . | . . . Power Chain Reactions . | . . . Alert | -11 -10 -10 ------- Run | Yrd Mat Sub Maximum Alert Level . | . . . Low Security (%) 100 | 100 100 . Level 1 . | . . . Level 2 . | . . . Level 3 . | . . . Level 4 . | . . . Level 5 . | . . . High Security . | . . . Max Security . | . . . Peak Influence 70 | . 70 . Initial . | . . . Average 25 | . 25 . Influence Increases 352 | . 222 130 Destroy 0b10 Robot/C 300 | . 180 120 Destroy 0b10 Robot/NC 5 | . 5 . Destroy Leader 42 | . 32 10 Successful Hack 5 | . 5 . Influence Decreases 352 | . 220 132 Entered New Map 2 | . . 2 Time Decay 310 | . 220 90 Lost Part 40 | . . 40 Squads Dispatched 3 | . 3 . Investigation 1 | . 1 . Extermination . | . . . Reinforcement 2 | . 2 . Assault . | . . . Garrison . | . . . Intercept . | . . . Searches Triggered . | . . . Construction Impeded . | . . . Haulers Reinforced . | . . . Active Scanning Responses . | . . . Cargo Convoy Interrupts . | . . . Stealth | -11 -10 -10 --------- Run | Yrd Mat Sub Distress Signals 1 | . 1 . Communications Jammed . | . . . Distress Signals . | . . . Times Spotted 30 | . 13 17 Peak Tracking Total 3 | . 3 2 Tactical Retreats 1 | . . 1 Traps | -11 -10 -10 ------- Run | Yrd Mat Sub Traps Triggered 3 | . 2 1 Indirectly . | . . . Trap Hack Attempts . | . . . Triggered . | . . . Disarmed . | . . . Reprogrammed . | . . . Reused . | . . . Traps Extracted . | . . . Installed . | . . . Triggered . | . . . Most Traps Carried 1 | . . 1 Machines | -11 -10 -10 ---------- Run | Yrd Mat Sub Machines Disabled . | . . . Max in Single Turn . | . . . Machines Repaired . | . . . Machines Dismantled . | . . . Machines Sabotaged . | . . . Overloaded Fab Kills . | . . . Hacking | -11 -10 -10 --------- Run | Yrd Mat Sub Machines Accessed 1 | . 1 . Terminals . | . . . Fabricators . | . . . Repair Stations 1 | . 1 . Recycling Units . | . . . Scanalyzers . | . . . Garrison Access . | . . . Total Hacks 2 | . 2 . Successful 2 | . 2 . Failed . | . . . Catastrophic . | . . . Database Lockouts . | . . . Manual . | . . . Terminals . | . . . Fabricators . | . . . Repair Stations 2 | . 2 . Recycling Units . | . . . Scanalyzers . | . . . Garrison Access . | . . . Terminal Hacks . | . . . Fabricator Hacks . | . . . Repair Station Hacks 2 | . 2 . Scan Component 1 | . 1 . Repair 1 | . 1 . Recycling Unit Hacks . | . . . Scanalyzer . | . . . Garrison Access Hacks . | . . . Unauthorized Hacks . | . . . Terminals . | . . . Fabricators . | . . . Repair Stations . | . . . Recycling Units . | . . . Scanalyzers . | . . . Garrison Access . | . . . Data Cores Recovered . | . . . Used . | . . . Hacking Detections 1 | . 1 . Full Trace Events . | . . . Feedback Events . | . . . Feedback Blocked . | . . . Robot Schematics Acquired . | . . . Robots Built . | . . . Authchips . | . . . Time . | . . . Total Robot Build Rating . | . . . Part Schematics Acquired . | . . . Parts Built . | . . . Authchips . | . . . Time . | . . . Total Part Build Rating . | . . . Part Studies Acquired . | . . . Parts Repaired 1 | . 1 . Time 26 | . 26 . Parts Recycled . | . . . Recycled Matter . | . . . Retrieved Matter . | . . . Retrieved Components . | . . . Parts Scanalyzed . | . . . Part Schematics Acquired . | . . . Parts Damaged . | . . . Bothacking | -11 -10 -10 ------------ Run | Yrd Mat Sub Used RIF Installer . | . . . Robots Hacked . | . . . Non-combat . | . . . Combat . | . . . Robot Hacks Applied . | . . . Relay Couplers Released . | . . . Fabnet Peak Effective % . | . . . Robots Rewired . | . . . Allies Hacked . | . . . Hacks Repelled . | . . . Allies | -11 -10 -10 -------- Run | Yrd Mat Sub Total Allies . | . . . Largest Group . | . . . Highest-Rated Group . | . . . Highest-Rated Ally . | . . . Total Orders . | . . . Ally Attacks . | . . . Total Damage . | . . . Kills . | . . . Allies Corrupted . | . . . Allies Melted . | . . . Intel | -11 -10 -10 ------- Run | Yrd Mat Sub Active Infowar (turns) . | . . . Robot Analysis Total . | . . . Derelict Logs Recovered 2 | . . 2 Drone Launches . | . . . Drone Recoveries . | . . . Exploration | -11 -10 -10 ------------- Run | Yrd Mat Sub Turns Passed 2076 | 8 538 1530 Spaces Moved 1227 | 3 258 966 Core . | . . . Treads 491 | 3 258 230 Legs . | . . . Wheels 736 | . . 736 Hover . | . . . Flight . | . . . Fastest Speed 125 | 160 160 125 Average Speed 141 | 160 160 136 Slowest Speed 240 | 160 160 240 Overloaded Moves . | . . . Propulsion Burnouts . | . . . Robots Hopped . | . . . Potential Cave-ins . | . . . Cave-ins Triggered . | . . . Exploration Rate (%) 35 | 2 42 62 Regions Visited 2 Branch Regions 1 Pre-discovered Areas . | . . . Known Exits Taken . | . . . Unknown Exits Taken 2 | 1 1 . Scrap Searched 5 | . . 5 Spaces Dug . | . . . Terrain Destroyed 3 | . . 3 Melee . | . . . Projectile 3 | . . 3 AOE . | . . . Terrain Rammed . | . . . Walls Destroyed . | . . . Machines Disabled . | . . . Actions | -11 -10 -10 --------- Run | Yrd Mat Sub Total 1425 | 5 328 1092 Wait 74 | . 27 47 Move 1225 | 2 257 966 Hop . | . . . Pick Up 21 | . 7 14 Fast Attach . | . . . Attach 9 | . 3 6 Detach 1 | . 1 . Swap 9 | 3 1 5 Drop 6 | . 2 4 Fire 78 | . 28 50 Melee . | . . . Ram . | . . . Kick . | . . . Crush 2 | . 2 . Escape Stasis . | . . . Rewire . | . . . Trap . | . . . Miscellaneous . | . . . Route ------- -11/Scrapyard -10/Materials (discovered 2 exits: [*Min] / [*Sub]) -10/Subcaves (discovered 3 exits: [*Mat x2] / [*Scr]) History --------- Turn | Location | Event 6 | -11/Scrapyard | Discovered new exit (range 3) 9 | -11/Scrapyard | Entered Materials 172 | -10/Materials | Repaired Assault Rifle 308 | -10/Materials | Build established: Mutant 335 | -10/Materials | Discovered new exit (range 7) 541 | -10/Materials | Discovered new exit (range 5) 547 | -10/Materials | Entered Subcaves 548 | -10/Subcaves | Approached by a straggling Scientist 558 | -10/Subcaves | Learned Materials terminal intel 709 | -10/Subcaves | A swath of the cavern ceiling suddenly collapsed 944 | -10/Subcaves | Lost 4 parts (1p1n1u1w) 1363 | -10/Subcaves | Shifting Twisted Machinery released Mak. Flight Unit 1365 | -10/Subcaves | Shifting Twisted Machinery released Flamer 1481 | -10/Subcaves | Core integrity fell below 50% 1601 | -10/Subcaves | Discovered new exit (range 5) 1687 | -10/Subcaves | Shifting Twisted Machinery released Sub. Laser 1695 | -10/Subcaves | Shifting Twisted Machinery released Sub. Beam Cannon 1907 | -10/Subcaves | Discovered new exit (range 7) 1947 | -10/Subcaves | Disturbed a concealed Subdweller 2049 | -10/Subcaves | Core integrity fell below 20% 2074 | -10/Subcaves | Ambushed by Subdwellers from Twisted Machinery 2077 | -10/Subcaves | Destroyed by JV-DFL(R) with Subdweller Machine Gun Last Messages --------------- 02014_ Searching scrap... 02014_ Found Flamer. 02014_ Found 64 Matter. 02033_ Searching scrap... 02033_ Found Sub. Power Source. 02033_ Found Battle Cannon. 02033_ Found 69 Matter. 02039_ Sub. Machine Gun shoots sparks and powers down. 02043_ Acquired 10 matter. 02045_ Acquired 2 matter. 02047_ E4-EFW(R) destroyed. 02048_ Acquired 2 matter. 02053_ D8-BJV(R) destroyed. 02054_ Acquired 2 matter. 02060_ Acquired Sub. Power Source. 02074_ 56-47V(R) emerges from the Twisted Machinery. 02074_ Lgt. Armor Plating destroyed. 02077_ 56-47V(R) destroyed. Map ----- +----------------------------------------------------+ | ????????????????????????????????????????????????? | | ????????????????????????????????????????????????? | | ????????????????????????????????????????????????? | | ????????????????????????????????????????????????? | | ????????????????????????????????????????????????? | | ????????????????????????????????????????????????? | | ????????????????????????????????????????????????? | | ????????????????????????????????????????????????? | | ????????????????????????????????????????????????? | | ????????????????????????????????????????????????? | | ????????????????????????????????????????????????? | | ????????????????????????????????????????????????? | | ????????????????????????????????????????????????? | | ?????????????????????? ?????????????????????????? | | ?????????????????????? ??#??????????????????????? | | ?????????????????????? ##;??????????????????????? | | ????????????????????? "& ??????????????????????? | | ????????????????????? ""%!??????????????????????? | | ?????????????????????#"R! ??????????????????????? | | ??????????????#???????" ??????????????????????? | | ??????????????# ??????" ??????????????????????? | | ??????????????? ?????# #??????????????????????? | | ???????????????? ????# ??????????????????????? | | ?????????????????# ??## #??????????????????????? | | ?????????????????# ## ##?????????????????????? | | ????????????????## @ ##????????????????????? | | ???????????????# ##???????????????????? | | ???????????????# ### #???????????????????? | | ???????????????# ????# ##??????????????????? | | ??????????????????????# #??????????????????? | | ?????????????????????## #??????????????????? | | ????????????????????## #??????????????????? | | ???????????????????## ## ###??????????????????? | | ???????????????????# #?##????????????????????? | | ???????????????????# &###??????????????????????? | | ???????????????????# &&#!##?????????????????????? | | ???????????????????## &%%#???????######??????### | | ????????????????????####]##??###??# #?????## # | | ???????????????????????##*#??# ##?# ##????## # | | ???????????????????????# &#??# #?# #????## # | | ???????????????????????##%#?## ### #????# | | ???????????????????????# #### #????## | | ???????????????????????# ### ##???## | | ???????????????????????## # ###?# | | ?????????????????????###|### #?# | | ?????????????????????# %##?## ### | | ?????????????????????## #??# | | ??????????????????????# ##?# ## | | ??????????????????????## #?# ##? | | ??????????????????????## ## ##?? | +----------------------------------------------------+ Best States ------------- Heat Dissipation 25 Energy Generation 10 Energy Capacity 250 Matter Stores 300 Matter Capacity 300 Sight Range 16 Terrain Scan Density 10 Armor Coverage 150 Evasion (%) 40 Recoil Reduction 2 Item Schematics ----------------- None Robot Schematics ------------------ None Fabricated ------------ Nothing Repaired ---------- Assault Rifle | 69% | -10/Materials Studied --------- None Alien Tech Used ----------------- None Achievements -------------- None Challenges ------------ None Game ------ Seed RingLaunchShield Manual? 1 Play Time 00:11:51 Cumulative 156.2 hours Start 2026.09.18 @ 14:23:34 End 2026.09.18 @ 14:32:28 Sessions 1 Manual Loads 0 Difficulty Rogue Special Mode None Game No. 97 Rogue 96 Adventurer 1 Explorer 0 Win Type - Total 11 Types 4/2/1/1/0/0/0/1/1/1 Lore% 62 Gallery% 70 Achievement% 70 Wizard Run 0 Options --------- Layout 1 ASCII 0 Keyboard 0 Movement Numpad Keybinds 0 Fullscreen 1 Font 32/SmallcapsGlow Map View 50x35 Zoom Use 0% Tactical HUD 1 Map Filters NONE Filters NONE Steam 1 RUN: 9944720c-8e2d-4a4f-a748-be55549200b2